[Event "*** Titled Tuesday Blitz"]
[Site "Chess.com"]
[Date "2021.02.02"]
[Round "8"]
[White "wonderfultime"]
[Black "BilodeauA"]
[Result "1/2-1/2"]
[WhiteElo "3012"]
[BlackElo "2879"]
[TimeControl "180+1"]
[EndTime "11:30:54 PST"]
[Termination "Game drawn by repetition"]

1. d4 {[%clk 0:03:00.9]} 1... d5 {[%clk 0:03:00.4]} 2. Nf3 {[%clk 0:02:59.6]}
2... Nf6 {[%clk 0:03:00.8]} 3. Bf4 {[%clk 0:02:59.6]} 3... e6 {[%clk 0:03:01.2]}
4. e3 {[%clk 0:03:00.2]} 4... c5 {[%clk 0:03:01.8]} 5. c3 {[%clk 0:03:00.6]}
5... Nc6 {[%clk 0:03:02.5]} 6. Nbd2 {[%clk 0:02:59.7]} 6... Be7 {[%clk
0:03:03.2]} 7. Bd3 {[%clk 0:02:59.5]} 7... O-O {[%clk 0:03:04]} 8. O-O {[%clk
0:02:59.7]} 8... Nh5 {[%clk 0:03:04]} 9. Be5 {[%clk 0:03:00.1]} 9... f6 {[%clk
0:03:04.1]} 10. Bg3 {[%clk 0:03:00.7]} 10... c4 {[%clk 0:03:04.7]} 11. Bc2
{[%clk 0:02:59]} 11... Nxg3 {[%clk 0:02:55.5]} 12. hxg3 {[%clk 0:02:57.4]} 12...
f5 {[%clk 0:02:44.4]} 13. Qe2 {[%clk 0:02:29.1]} 13... b5 {[%clk 0:02:41.9]} 14.
Ne5 {[%clk 0:02:24.7]} 14... Nxe5 {[%clk 0:02:18.1]} 15. dxe5 {[%clk 0:02:25.6]}
15... Qc7 {[%clk 0:02:17.5]} 16. f4 {[%clk 0:02:22.7]} 16... b4 {[%clk 0:02:15]}
17. Nf3 {[%clk 0:02:21.3]} 17... a5 {[%clk 0:02:14.4]} 18. Nd4 {[%clk
0:02:20.7]} 18... a4 {[%clk 0:02:14.8]} 19. a3 {[%clk 0:02:17.3]} 19... bxa3
{[%clk 0:02:12.9]} 20. bxa3 {[%clk 0:02:17.3]} 20... Bd7 {[%clk 0:02:13.4]} 21.
g4 {[%clk 0:02:17.4]} 21... g6 {[%clk 0:01:57.4]} 22. gxf5 {[%clk 0:02:17.6]}
22... exf5 {[%clk 0:01:57.8]} 23. Bd1 {[%clk 0:01:49.4]} 23... h5 {[%clk
0:01:55.3]} 24. Qd2 {[%clk 0:01:49.4]} 24... Qc5 {[%clk 0:01:29.8]} 25. Bf3
{[%clk 0:01:47.7]} 25... Rfb8 {[%clk 0:01:29.8]} 26. Nc2 {[%clk 0:01:36.7]}
26... Be6 {[%clk 0:01:24.2]} 27. Nb4 {[%clk 0:01:36.4]} 27... Rd8 {[%clk
0:01:14.4]} 28. Rfd1 {[%clk 0:01:36.6]} 28... Ra5 {[%clk 0:01:12.6]} 29. Rab1
{[%clk 0:01:32.5]} 29... Kf7 {[%clk 0:01:09.7]} 30. Qf2 {[%clk 0:01:25.6]} 30...
Rd7 {[%clk 0:01:01.9]} 31. Rd4 {[%clk 0:01:25.7]} 31... Qb6 {[%clk 0:00:44.8]}
32. Rbd1 {[%clk 0:01:25.9]} 32... Bc5 {[%clk 0:00:43.9]} 33. Qh4 {[%clk
0:01:20.5]} 33... Be7 {[%clk 0:00:39.7]} 34. Qh3 {[%clk 0:01:20.8]} 34... Rc5
{[%clk 0:00:37.7]} 35. Kf2 {[%clk 0:01:16.3]} 35... Rb5 {[%clk 0:00:36.6]} 36.
R1d2 {[%clk 0:01:06.9]} 36... Ke8 {[%clk 0:00:36.8]} 37. Qg3 {[%clk 0:01:03.5]}
37... Bf7 {[%clk 0:00:36.7]} 38. Nxd5 {[%clk 0:00:48.8]} 38... Bxd5 {[%clk
0:00:29.1]} 39. Bxd5 {[%clk 0:00:49.7]} 39... Rb2 {[%clk 0:00:21]} 40. Bf7+
{[%clk 0:00:29.3]} 40... Kxf7 {[%clk 0:00:18.6]} 41. Rxd7 {[%clk 0:00:30.2]}
41... Rxd2+ {[%clk 0:00:17.3]} 42. Rxd2 {[%clk 0:00:31.1]} 42... Bxa3 {[%clk
0:00:18.1]} 43. Qf3 {[%clk 0:00:31.6]} 43... Bc1 {[%clk 0:00:16]} 44. Qd5+
{[%clk 0:00:27.4]} 44... Kg7 {[%clk 0:00:16.3]} 45. Qd7+ {[%clk 0:00:27.6]}
45... Kh6 {[%clk 0:00:16.4]} 46. Qe8 {[%clk 0:00:25.2]} 46... Qb7 {[%clk
0:00:10.3]} 47. Rd7 {[%clk 0:00:21.9]} 47... Bxe3+ {[%clk 0:00:06.8]} 48. Kg3
{[%clk 0:00:18.4]} 48... Bxf4+ {[%clk 0:00:06.1]} 49. Kh3 {[%clk 0:00:18.9]}
49... Qe4 {[%clk 0:00:03.8]} 50. Qf8+ {[%clk 0:00:09.8]} 50... Kg5 {[%clk
0:00:04.3]} 51. Qf6+ {[%clk 0:00:10.3]} 51... Kh6 {[%clk 0:00:05]} 52. Qg7+
{[%clk 0:00:10.9]} 52... Kg5 {[%clk 0:00:05.6]} 53. Qe7+ {[%clk 0:00:11.8]}
53... Kh6 {[%clk 0:00:06.1]} 54. Qf8+ {[%clk 0:00:06.7]} 54... Kg5 {[%clk
0:00:06.4]} 55. Qf6+ {[%clk 0:00:07.6]} 55... Kh6 {[%clk 0:00:06.8]} 56. Qg7+
{[%clk 0:00:01.8]} 56... Kg5 {[%clk 0:00:07.2]} 57. Qe7+ {[%clk 0:00:02.5]}
57... Kh6 {[%clk 0:00:07.7]} 58. Qf8+ {[%clk 0:00:02.8]} 1/2-1/2

[Event "*** Titled Tuesday Blitz"]
[Site "Chess.com"]
[Date "2021.02.02"]
[Round "8"]
[White "ural58"]
[Black "Mr_Sinigami"]
[Result "1-0"]
[WhiteElo "2487"]
[BlackElo "2625"]
[TimeControl "180+1"]
[EndTime "11:30:57 PST"]
[Termination "ural58 won on time"]

1. e4 {[%clk 0:03:00.9]} 1... c5 {[%clk 0:02:58.9]} 2. b3 {[%clk 0:03:00.5]}
2... e6 {[%clk 0:02:54.3]} 3. Qe2 {[%clk 0:02:59.2]} 3... Nf6 {[%clk 0:02:51.7]}
4. Bb2 {[%clk 0:02:56.7]} 4... d5 {[%clk 0:02:46.3]} 5. exd5 {[%clk 0:02:56.4]}
5... Nxd5 {[%clk 0:02:45.6]} 6. Nc3 {[%clk 0:02:56.5]} 6... Nc6 {[%clk 0:02:41]}
7. Nf3 {[%clk 0:02:36.4]} 7... Ndb4 {[%clk 0:02:26.9]} 8. O-O-O {[%clk
0:02:34.7]} 8... Nd4 {[%clk 0:02:23.6]} 9. Qe4 {[%clk 0:02:18.7]} 9... Nbxc2
{[%clk 0:02:02.5]} 10. Nb5 {[%clk 0:02:10.1]} 10... Bd7 {[%clk 0:01:18.5]} 11.
Nbxd4 {[%clk 0:02:04]} 11... Nxd4 {[%clk 0:01:17.5]} 12. Qxb7 {[%clk 0:02:03.9]}
12... Bd6 {[%clk 0:00:53.5]} 13. Nxd4 {[%clk 0:01:50.5]} 13... cxd4 {[%clk
0:00:53.1]} 14. Bxd4 {[%clk 0:01:44.4]} 14... O-O {[%clk 0:00:52.9]} 15. Bc4
{[%clk 0:01:41.3]} 15... e5 {[%clk 0:00:41.4]} 16. Bc3 {[%clk 0:01:40.6]} 16...
Bf5 {[%clk 0:00:40.9]} 17. Kb2 {[%clk 0:01:34.5]} 17... a5 {[%clk 0:00:40.4]}
18. a4 {[%clk 0:01:33.7]} 18... Qf6 {[%clk 0:00:32.5]} 19. Qf3 {[%clk
0:01:28.4]} 19... Qg6 {[%clk 0:00:30]} 20. Qg3 {[%clk 0:01:24.2]} 20... Qh6
{[%clk 0:00:20.5]} 21. Qe3 {[%clk 0:01:14.2]} 21... Qg6 {[%clk 0:00:18]} 22. f3
{[%clk 0:01:08.8]} 22... Rab8 {[%clk 0:00:17.4]} 23. h4 {[%clk 0:00:58.3]} 23...
Be6 {[%clk 0:00:15.8]} 24. Bxe6 {[%clk 0:00:50.3]} 24... Qxe6 {[%clk 0:00:15.7]}
25. Bxa5 {[%clk 0:00:50.5]} 25... Bc5 {[%clk 0:00:10]} 26. Qd3 {[%clk
0:00:44.9]} 26... Bd4+ {[%clk 0:00:09.4]} 27. Ka2 {[%clk 0:00:39.6]} 27... Ra8
{[%clk 0:00:09.5]} 28. Bc3 {[%clk 0:00:27.8]} 28... Rxa4+ {[%clk 0:00:08.2]} 29.
Kb2 {[%clk 0:00:28.3]} 29... Rfa8 {[%clk 0:00:06.4]} 30. Ra1 {[%clk 0:00:26.5]}
30... Rxa1 {[%clk 0:00:06.1]} 31. Rxa1 {[%clk 0:00:27]} 31... Rxa1 {[%clk
0:00:06.4]} 32. Kxa1 {[%clk 0:00:27.3]} 32... Qxb3 {[%clk 0:00:06.6]} 33. h5
{[%clk 0:00:10.8]} 33... h6 {[%clk 0:00:06.5]} 34. g4 {[%clk 0:00:10.7]} 34...
f6 {[%clk 0:00:06.5]} 35. f4 {[%clk 0:00:06.3]} 35... Kh8 {[%clk 0:00:06.4]} 36.
fxe5 {[%clk 0:00:06.3]} 36... fxe5 {[%clk 0:00:06.4]} 37. Qf3 {[%clk 0:00:06.7]}
37... Bxc3+ {[%clk 0:00:04.1]} 38. Qxc3 {[%clk 0:00:06.7]} 38... Qd1+ {[%clk
0:00:04.3]} 39. Kb2 {[%clk 0:00:06.4]} 39... Qxg4 {[%clk 0:00:05.2]} 40. Qxe5
{[%clk 0:00:06.6]} 40... Qb4+ {[%clk 0:00:05.3]} 41. Kc2 {[%clk 0:00:06.6]}
41... Qa4+ {[%clk 0:00:05.7]} 42. Kb2 {[%clk 0:00:06.8]} 42... Qb4+ {[%clk
0:00:05.9]} 43. Kc2 {[%clk 0:00:07.2]} 43... Qc4+ {[%clk 0:00:05.6]} 44. Kd1
{[%clk 0:00:06.1]} 44... Qb3+ {[%clk 0:00:04.9]} 45. Ke1 {[%clk 0:00:06.1]}
45... Qb1+ {[%clk 0:00:04.8]} 46. Ke2 {[%clk 0:00:06.4]} 46... Qg1 {[%clk
0:00:03.6]} 47. d4 {[%clk 0:00:06.4]} 47... Qg2+ {[%clk 0:00:03.3]} 48. Kd3
{[%clk 0:00:07]} 48... Qf1+ {[%clk 0:00:03.3]} 49. Kc3 {[%clk 0:00:07]} 49...
Qa1+ {[%clk 0:00:03.1]} 50. Kb4 {[%clk 0:00:07.2]} 50... Qb2+ {[%clk 0:00:03.1]}
51. Kc5 {[%clk 0:00:07.6]} 51... Qc3+ {[%clk 0:00:03.3]} 52. Kd6 {[%clk
0:00:07.7]} 52... Qa3+ {[%clk 0:00:01.7]} 53. Ke6 {[%clk 0:00:08.2]} 53... Qb3+
{[%clk 0:00:01.4]} 54. d5 {[%clk 0:00:08.3]} 54... Qh3+ {[%clk 0:00:01]} 55. Ke7
{[%clk 0:00:08.4]} 1-0

[Event "*** Titled Tuesday Blitz"]
[Site "Chess.com"]
[Date "2021.02.02"]
[Round "8"]
[White "PLAYER_2006_M"]
[Black "MartinMatthiesen"]
[Result "0-1"]
[WhiteElo "2528"]
[BlackElo "2374"]
[TimeControl "180+1"]
[EndTime "11:30:57 PST"]
[Termination "MartinMatthiesen won on time"]

1. d4 {[%clk 0:03:00.9]} 1... Nf6 {[%clk 0:02:58.8]} 2. Nc3 {[%clk 0:02:59.9]}
2... d5 {[%clk 0:02:58.3]} 3. Bf4 {[%clk 0:02:59.6]} 3... c5 {[%clk 0:02:57.3]}
4. e3 {[%clk 0:02:59.9]} 4... cxd4 {[%clk 0:02:57.4]} 5. exd4 {[%clk 0:03:00.8]}
5... a6 {[%clk 0:02:57.6]} 6. Nce2 {[%clk 0:03:01]} 6... Bf5 {[%clk 0:02:51.1]}
7. c3 {[%clk 0:03:01.2]} 7... Nc6 {[%clk 0:02:50.6]} 8. Nf3 {[%clk 0:02:58.5]}
8... e6 {[%clk 0:02:49.9]} 9. Ng3 {[%clk 0:02:58.7]} 9... Bg6 {[%clk 0:02:49.6]}
10. Bd3 {[%clk 0:02:59.3]} 10... Bd6 {[%clk 0:02:48.8]} 11. Bxd6 {[%clk
0:02:58.9]} 11... Qxd6 {[%clk 0:02:48.5]} 12. O-O {[%clk 0:02:59]} 12... O-O
{[%clk 0:02:48.1]} 13. Re1 {[%clk 0:02:58.7]} 13... Rab8 {[%clk 0:02:43.7]} 14.
Ne5 {[%clk 0:02:58.5]} 14... Rfc8 {[%clk 0:02:43]} 15. h4 {[%clk 0:02:55.5]}
15... b5 {[%clk 0:02:37.4]} 16. h5 {[%clk 0:02:53]} 16... Bxd3 {[%clk
0:02:36.9]} 17. Qxd3 {[%clk 0:02:53.6]} 17... h6 {[%clk 0:02:34.2]} 18. Re3
{[%clk 0:02:46.6]} 18... b4 {[%clk 0:02:32.8]} 19. Rae1 {[%clk 0:02:46.1]} 19...
bxc3 {[%clk 0:02:32.5]} 20. bxc3 {[%clk 0:02:47]} 20... Qf8 {[%clk 0:01:30.3]}
21. Rf3 {[%clk 0:02:41.5]} 21... Nxe5 {[%clk 0:01:27.8]} 22. Rxe5 {[%clk
0:02:29.1]} 22... Qa3 {[%clk 0:01:13.3]} 23. Rxf6 {[%clk 0:01:40.4]} 23... gxf6
{[%clk 0:01:12.1]} 24. Re3 {[%clk 0:01:40.7]} 24... Qc1+ {[%clk 0:01:07.3]} 25.
Kh2 {[%clk 0:01:40]} 25... Rb2 {[%clk 0:01:02.6]} 26. Rf3 {[%clk 0:01:16.1]}
26... Qg5 {[%clk 0:00:53]} 27. Kh3 {[%clk 0:01:10.5]} 27... f5 {[%clk
0:00:44.5]} 28. Nxf5 {[%clk 0:01:09.4]} 28... Qxh5+ {[%clk 0:00:43.6]} 29. Nh4
{[%clk 0:01:08.3]} 29... Rcb8 {[%clk 0:00:31.5]} 30. Rg3+ {[%clk 0:01:01.7]}
30... Kh8 {[%clk 0:00:30.9]} 31. a4 {[%clk 0:00:29.6]} 31... Rb1 {[%clk
0:00:30.7]} 32. Rg4 {[%clk 0:00:22.6]} 32... Rh1+ {[%clk 0:00:28]} 33. Kg3
{[%clk 0:00:22.6]} 33... Rg8 {[%clk 0:00:20.1]} 34. Rxg8+ {[%clk 0:00:19.8]}
34... Kxg8 {[%clk 0:00:21]} 35. Nf3 {[%clk 0:00:17.4]} 35... Qg6+ {[%clk
0:00:14.5]} 36. Qxg6+ {[%clk 0:00:17.5]} 36... fxg6 {[%clk 0:00:15.4]} 37. Ne5
{[%clk 0:00:18.2]} 37... Ra1 {[%clk 0:00:14.4]} 38. Nxg6 {[%clk 0:00:15.7]}
38... Rxa4 {[%clk 0:00:14.4]} 39. Kf4 {[%clk 0:00:15.5]} 39... Ra3 {[%clk
0:00:14.1]} 40. Ke5 {[%clk 0:00:14.5]} 40... Rxc3 {[%clk 0:00:14.1]} 41. Kxe6
{[%clk 0:00:14.9]} 41... a5 {[%clk 0:00:14.2]} 42. Ne7+ {[%clk 0:00:14.1]} 42...
Kh7 {[%clk 0:00:13.5]} 43. Nxd5 {[%clk 0:00:14.6]} 43... Rc2 {[%clk 0:00:13.7]}
44. f4 {[%clk 0:00:11]} 44... a4 {[%clk 0:00:13.4]} 45. Nb4 {[%clk 0:00:10.8]}
45... Rb2 {[%clk 0:00:12.9]} 46. Nd3 {[%clk 0:00:10.3]} 46... a3 {[%clk
0:00:12.3]} 47. Nc1 {[%clk 0:00:07.9]} 47... a2 {[%clk 0:00:11.9]} 48. Nxa2
{[%clk 0:00:08]} 48... Rxa2 {[%clk 0:00:12.8]} 49. d5 {[%clk 0:00:08.7]} 49...
Rxg2 {[%clk 0:00:12.4]} 50. d6 {[%clk 0:00:09.3]} 50... Rd2 {[%clk 0:00:12.4]}
51. d7 {[%clk 0:00:08.1]} 51... Kg6 {[%clk 0:00:12.3]} 52. f5+ {[%clk
0:00:08.5]} 52... Kg5 {[%clk 0:00:12.2]} 53. f6 {[%clk 0:00:08]} 53... Rxd7
{[%clk 0:00:11.9]} 54. Kxd7 {[%clk 0:00:06.5]} 54... Kxf6 {[%clk 0:00:12.2]} 55.
Kd6 {[%clk 0:00:07]} 55... h5 {[%clk 0:00:12.2]} 56. Kd5 {[%clk 0:00:07.6]}
56... Kf5 {[%clk 0:00:12.6]} 57. Kd4 {[%clk 0:00:08.1]} 57... Kf4 {[%clk
0:00:13.1]} 58. Kd3 {[%clk 0:00:08.8]} 58... Kf3 {[%clk 0:00:13.7]} 59. Kd4
{[%clk 0:00:09.2]} 59... h4 {[%clk 0:00:13.5]} 0-1

[Event "*** Titled Tuesday Blitz"]
[Site "Chess.com"]
[Date "2021.02.02"]
[Round "8"]
[White "fmshawnrl123"]
[Black "DamianoLew95"]
[Result "1-0"]
[WhiteElo "2773"]
[BlackElo "2592"]
[TimeControl "180+1"]
[EndTime "11:30:58 PST"]
[Termination "fmshawnrl123 won by resignation"]

1. a3 {[%clk 0:03:00.9]} 1... h5 {[%clk 0:02:31.2]} 2. c4 {[%clk 0:02:56.9]}
2... e5 {[%clk 0:02:30.9]} 3. Nc3 {[%clk 0:02:56.6]} 3... d6 {[%clk 0:02:30.2]}
4. Nf3 {[%clk 0:02:54.4]} 4... Nc6 {[%clk 0:02:30.3]} 5. d3 {[%clk 0:02:53.4]}
5... Be7 {[%clk 0:02:29.5]} 6. Nd5 {[%clk 0:02:44.6]} 6... Be6 {[%clk
0:02:29.3]} 7. Nxe7 {[%clk 0:02:43.8]} 7... Ngxe7 {[%clk 0:02:28.6]} 8. b4
{[%clk 0:02:36.4]} 8... e4 {[%clk 0:02:22.4]} 9. Ng5 {[%clk 0:02:30.1]} 9...
exd3 {[%clk 0:02:20.7]} 10. Nxe6 {[%clk 0:02:28.6]} 10... fxe6 {[%clk
0:02:20.9]} 11. Qxd3 {[%clk 0:02:26.2]} 11... Ne5 {[%clk 0:02:15.3]} 12. Qc2
{[%clk 0:02:25.1]} 12... Nf5 {[%clk 0:02:14]} 13. Bb2 {[%clk 0:02:22.4]} 13...
Qg5 {[%clk 0:02:09]} 14. e3 {[%clk 0:02:13.1]} 14... Ng4 {[%clk 0:02:07]} 15.
O-O-O {[%clk 0:02:05.8]} 15... O-O-O {[%clk 0:01:54]} 16. h3 {[%clk 0:02:00.9]}
16... Nf6 {[%clk 0:01:26.2]} 17. Kb1 {[%clk 0:01:47.3]} 17... Rhf8 {[%clk
0:01:23.6]} 18. g3 {[%clk 0:01:39.6]} 18... Ne7 {[%clk 0:01:16.5]} 19. h4 {[%clk
0:01:37.7]} 19... Qh6 {[%clk 0:01:10.5]} 20. Bd3 {[%clk 0:01:30.1]} 20... Ng4
{[%clk 0:01:04.3]} 21. Rd2 {[%clk 0:01:26]} 21... Rf7 {[%clk 0:00:59.2]} 22. Re1
{[%clk 0:01:16.1]} 22... Nc6 {[%clk 0:00:52.3]} 23. Be4 {[%clk 0:00:51]} 23...
Rdf8 {[%clk 0:00:46.4]} 24. f4 {[%clk 0:00:46.5]} 24... Ne7 {[%clk 0:00:40.6]}
25. Qa4 {[%clk 0:00:28.2]} 25... Kb8 {[%clk 0:00:37.5]} 26. Bd4 {[%clk
0:00:28.7]} 26... Nc8 {[%clk 0:00:32.6]} 27. c5 {[%clk 0:00:23.7]} 27... d5
{[%clk 0:00:27.4]} 28. Bd3 {[%clk 0:00:21.9]} 28... Ne7 {[%clk 0:00:26.6]} 29.
b5 {[%clk 0:00:20.4]} 29... Nf5 {[%clk 0:00:23.8]} 30. c6 {[%clk 0:00:16.8]}
30... Nxd4 {[%clk 0:00:21.5]} 31. exd4 {[%clk 0:00:17.6]} 31... Qf6 {[%clk
0:00:17.7]} 32. cxb7 {[%clk 0:00:16.1]} 32... Rd8 {[%clk 0:00:13.4]} 33. Rc2
{[%clk 0:00:13.9]} 33... Qe7 {[%clk 0:00:11]} 34. Rc6 {[%clk 0:00:12.3]} 34...
Rd6 {[%clk 0:00:05.8]} 35. Rec1 {[%clk 0:00:09.9]} 35... Ne3 {[%clk 0:00:03]}
36. R1c5 {[%clk 0:00:07.3]} 36... Nf5 {[%clk 0:00:01.5]} 37. Kb2 {[%clk
0:00:04.8]} 37... Nxd4 {[%clk 0:00:01.5]} 38. Qxd4 {[%clk 0:00:01.8]} 38... Rxc6
{[%clk 0:00:02.4]} 39. bxc6 {[%clk 0:00:02.1]} 39... e5 {[%clk 0:00:03]} 40.
Qxd5 {[%clk 0:00:01.9]} 40... Rf6 {[%clk 0:00:02.9]} 41. Qc4 {[%clk 0:00:01.9]}
41... Rd6 {[%clk 0:00:03.2]} 42. Bc2 {[%clk 0:00:02.4]} 42... Rd4 {[%clk
0:00:03.5]} 43. Qg8+ {[%clk 0:00:02.6]} 43... Rd8 {[%clk 0:00:04]} 44. Qc4
{[%clk 0:00:03.1]} 44... Rd4 {[%clk 0:00:04.4]} 45. Qb5 {[%clk 0:00:02.6]} 45...
e4 {[%clk 0:00:04]} 46. Rc4 {[%clk 0:00:02.7]} 46... Rd6 {[%clk 0:00:03.9]} 47.
Qb4 {[%clk 0:00:02.7]} 47... Qf6+ {[%clk 0:00:04.8]} 48. Ka2 {[%clk 0:00:02.5]}
48... e3 {[%clk 0:00:04.9]} 49. Qb3 {[%clk 0:00:02.7]} 49... e2 {[%clk
0:00:04.4]} 50. Re4 {[%clk 0:00:03.2]} 50... Rd8 {[%clk 0:00:04.8]} 51. Rxe2
{[%clk 0:00:03.2]} 51... Qxc6 {[%clk 0:00:05.1]} 52. Re4 {[%clk 0:00:03.1]}
52... a5 {[%clk 0:00:05]} 53. Rc4 {[%clk 0:00:03.5]} 53... Qh1 {[%clk
0:00:04.8]} 54. Qc3 {[%clk 0:00:03.6]} 54... c6 {[%clk 0:00:03.1]} 55. Qxa5
{[%clk 0:00:03.5]} 55... Rd6 {[%clk 0:00:01.9]} 56. Qa8+ {[%clk 0:00:03.7]}
56... Kc7 {[%clk 0:00:02.6]} 57. b8=Q+ {[%clk 0:00:04.6]} 1-0

[Event "*** Titled Tuesday Blitz"]
[Site "Chess.com"]
[Date "2021.02.02"]
[Round "8"]
[White "Abdimalik_Abdisalimov"]
[Black "MVM2008"]
[Result "0-1"]
[WhiteElo "2285"]
[BlackElo "2117"]
[TimeControl "180+1"]
[EndTime "11:31:00 PST"]
[Termination "MVM2008 won by resignation"]

1. d4 {[%clk 0:03:00.9]} 1... Nf6 {[%clk 0:02:59.4]} 2. c4 {[%clk 0:03:00.8]}
2... g6 {[%clk 0:02:58.3]} 3. f3 {[%clk 0:03:00.7]} 3... Bg7 {[%clk 0:02:57]} 4.
e4 {[%clk 0:03:01.1]} 4... d6 {[%clk 0:02:40]} 5. Nc3 {[%clk 0:03:02]} 5... O-O
{[%clk 0:02:39.1]} 6. Nb1 {[%clk 0:03:02.9]} 6... e5 {[%clk 0:02:36.6]} 7. Nc3
{[%clk 0:03:03.8]} 7... exd4 {[%clk 0:02:30.9]} 8. Qxd4 {[%clk 0:02:58]} 8...
Nxe4 {[%clk 0:02:25.5]} 9. Qxe4 {[%clk 0:02:47.3]} 9... Re8 {[%clk 0:02:25.6]}
10. Bd3 {[%clk 0:02:44.1]} 10... Rxe4+ {[%clk 0:02:11.3]} 11. Bxe4 {[%clk
0:02:44.2]} 11... Nc6 {[%clk 0:02:08.7]} 12. Nge2 {[%clk 0:02:44.3]} 12... Nd4
{[%clk 0:02:06.4]} 13. Nxd4 {[%clk 0:02:40.5]} 13... Bxd4 {[%clk 0:02:07.3]} 14.
Bd2 {[%clk 0:02:39.8]} 14... c6 {[%clk 0:02:07]} 15. O-O-O {[%clk 0:02:38.3]}
15... Be6 {[%clk 0:02:02.6]} 16. b3 {[%clk 0:02:30.4]} 16... a5 {[%clk
0:01:56.8]} 17. Ne2 {[%clk 0:02:19.8]} 17... Bg7 {[%clk 0:01:51.8]} 18. Bf4
{[%clk 0:02:19.2]} 18... Qf6 {[%clk 0:01:47.9]} 19. Kd2 {[%clk 0:02:02.6]} 19...
Qb2+ {[%clk 0:01:29.6]} 20. Ke3 {[%clk 0:02:02.4]} 20... Qxa2 {[%clk 0:01:26]}
21. Bxd6 {[%clk 0:01:57.6]} 21... Qxb3+ {[%clk 0:01:23.5]} 22. Kf2 {[%clk
0:01:53.3]} 22... Qxc4 {[%clk 0:01:19.6]} 23. Rc1 {[%clk 0:01:52.5]} 23... Qb5
{[%clk 0:01:07.8]} 24. Rb1 {[%clk 0:01:48.7]} 24... Qg5 {[%clk 0:01:01.4]} 25.
Rxb7 {[%clk 0:01:38.7]} 25... Qd2 {[%clk 0:00:31.2]} 26. Bc5 {[%clk 0:01:13.5]}
26... Bc4 {[%clk 0:00:24.7]} 27. Re1 {[%clk 0:01:09.5]} 27... Bc3 {[%clk
0:00:14.1]} 28. Rbb1 {[%clk 0:01:02.4]} 28... a4 {[%clk 0:00:14.1]} 29. Be3
{[%clk 0:01:00.4]} 29... Qa2 {[%clk 0:00:10.8]} 30. Bxc6 {[%clk 0:00:40.3]}
30... Bxe1+ {[%clk 0:00:10.3]} 31. Rxe1 {[%clk 0:00:38]} 31... Rc8 {[%clk
0:00:08.6]} 32. Be4 {[%clk 0:00:37.4]} 32... f5 {[%clk 0:00:06.4]} 33. Bb1
{[%clk 0:00:35.9]} 33... Qb2 {[%clk 0:00:05.6]} 34. Bd4 {[%clk 0:00:35.5]} 34...
Qb5 {[%clk 0:00:05.1]} 35. Nc3 {[%clk 0:00:33.3]} 35... Qd7 {[%clk 0:00:04.5]}
36. Rd1 {[%clk 0:00:31.3]} 36... a3 {[%clk 0:00:04.6]} 37. Bc5 {[%clk
0:00:26.8]} 37... Qg7 {[%clk 0:00:03.8]} 38. Bd4 {[%clk 0:00:25.9]} 38... Qd7
{[%clk 0:00:03.8]} 39. Bc5 {[%clk 0:00:25.1]} 39... Qxd1 {[%clk 0:00:03.8]} 40.
Nxd1 {[%clk 0:00:22.8]} 40... Rxc5 {[%clk 0:00:04.3]} 41. Nc3 {[%clk 0:00:23]}
41... Ra5 {[%clk 0:00:04.1]} 42. Ba2 {[%clk 0:00:22.4]} 42... Bxa2 {[%clk
0:00:04.2]} 43. Nxa2 {[%clk 0:00:23.3]} 43... Rb5 {[%clk 0:00:04.6]} 44. Ke3
{[%clk 0:00:23.4]} 44... Rb2 {[%clk 0:00:04.8]} 45. Nc3 {[%clk 0:00:23.8]} 45...
a2 {[%clk 0:00:05.1]} 46. Nxa2 {[%clk 0:00:23.5]} 46... Rxa2 {[%clk 0:00:06]}
47. Kf4 {[%clk 0:00:24]} 47... Rxg2 {[%clk 0:00:05.9]} 48. Ke5 {[%clk
0:00:23.6]} 48... Kf7 {[%clk 0:00:06.1]} 49. Kf4 {[%clk 0:00:23.3]} 49... Kf6
{[%clk 0:00:06.6]} 50. h4 {[%clk 0:00:22.4]} 50... h6 {[%clk 0:00:06.2]} 51. h5
{[%clk 0:00:22.4]} 51... g5+ {[%clk 0:00:06.2]} 52. Ke3 {[%clk 0:00:22.1]} 52...
Rh2 {[%clk 0:00:06.4]} 53. f4 {[%clk 0:00:21.3]} 53... Rxh5 {[%clk 0:00:06.6]}
54. fxg5+ {[%clk 0:00:21]} 54... hxg5 {[%clk 0:00:07.5]} 55. Kf3 {[%clk
0:00:21.4]} 55... Rh8 {[%clk 0:00:07.5]} 56. Kg2 {[%clk 0:00:22.3]} 56... Ra8
{[%clk 0:00:08]} 57. Kg3 {[%clk 0:00:23.2]} 57... f4+ {[%clk 0:00:08.3]} 58. Kf2
{[%clk 0:00:24.1]} 58... Kf5 {[%clk 0:00:08.3]} 59. Kg2 {[%clk 0:00:25]} 59...
g4 {[%clk 0:00:08.9]} 60. Kf2 {[%clk 0:00:23.5]} 60... Ke4 {[%clk 0:00:08.7]}
61. Kf1 {[%clk 0:00:24.4]} 61... Ke3 {[%clk 0:00:08]} 62. Kg2 {[%clk 0:00:22.3]}
62... Ra2+ {[%clk 0:00:05.7]} 63. Kh1 {[%clk 0:00:21.9]} 63... Kf3 {[%clk
0:00:05.2]} 64. Kg1 {[%clk 0:00:21.8]} 64... g3 {[%clk 0:00:04.5]} 0-1